[Event "Titled Tuesday Blitz April 11 Early 2023"]
[White "Mordechai, Hanan"]
[Black "Kula, Robert"]
[WhiteFideId "2804166"]
[BlackFideId "1101218"]
[WhiteElo "2324"]
[BlackElo "2180"]
[Result "1-0"]
[Round "08"]
[TimeControl "180+2"]
[Date "2023.04.11"]
[WhiteClock "0:02:13"]
[BlackClock "0:01:25"]

1. e4 {[%clk 0:03:00]}  e5 {[%clk 0:02:58]} 2. Nf3 {[%clk 0:02:59]}  Nc6 {[%clk 0:02:59]} 3. Bc4 {[%clk 0:02:58]}  Be7 {[%clk 0:02:55]} 4. O-O {[%clk 0:02:57]}  Nf6 {[%clk 0:02:55]} 5. d3 {[%clk 0:02:57]}  O-O {[%clk 0:02:55]} 6. h3 {[%clk 0:02:55]}  d6 {[%clk 0:02:55]} 7. Be3 {[%clk 0:02:52]}  Be6 {[%clk 0:02:55]} 8. Nbd2 {[%clk 0:02:51]}  Nd7 {[%clk 0:02:53]} 9. Bxe6 {[%clk 0:02:48]}  fxe6 {[%clk 0:02:53]} 10. c3 {[%clk 0:02:49]}  a6 {[%clk 0:02:50]} 11. Qb3 {[%clk 0:02:49]}  Rf6 {[%clk 0:02:35]} 12. Qxb7 {[%clk 0:02:47]}  Na5 {[%clk 0:02:30]} 13. Qb4 {[%clk 0:02:45]}  c5 {[%clk 0:02:26]} 14. Qa4 {[%clk 0:02:41]}  Rb8 {[%clk 0:02:18]} 15. Bg5 {[%clk 0:02:37]}  Rf7 {[%clk 0:02:13]} 16. Bxe7 {[%clk 0:02:37]}  Rxe7 {[%clk 0:02:13]} 17. b4 {[%clk 0:02:35]}  cxb4 {[%clk 0:02:12]} 18. cxb4 {[%clk 0:02:35]}  Nb7 {[%clk 0:02:06]} 19. Qxa6 {[%clk 0:02:34]}  Nb6 {[%clk 0:01:48]} 20. Qb5 {[%clk 0:02:32]}  Rc7 {[%clk 0:01:25]} 21. Qxb6 {[%clk 0:02:13]} 1-0


[Site "https://www.chess.com"]

[Event "Titled Tuesday Blitz April 11 Early 2023"]
[White "Kohler, Aran"]
[Black "Estrada Nieto, Julian"]
[WhiteFideId "1002856"]
[BlackFideId "5101018"]
[WhiteElo "2292"]
[BlackElo "2161"]
[Result "1-0"]
[Round "08"]
[TimeControl "180+2"]
[Date "2023.04.11"]
[WhiteClock "0:00:05"]
[BlackClock "0:00:18"]

1. d4 {[%clk 0:02:59]}  d5 {[%clk 0:02:59]} 2. c4 {[%clk 0:02:58]}  dxc4 {[%clk 0:03:00]} 3. Nf3 {[%clk 0:02:56]}  Nf6 {[%clk 0:02:59]} 4. e3 {[%clk 0:02:51]}  e6 {[%clk 0:02:58]} 5. Bxc4 {[%clk 0:02:51]}  a6 {[%clk 0:02:59]} 6. Nc3 {[%clk 0:02:47]}  c5 {[%clk 0:02:57]} 7. O-O {[%clk 0:02:46]}  b5 {[%clk 0:02:57]} 8. Bd3 {[%clk 0:02:46]}  Bb7 {[%clk 0:02:57]} 9. Qe2 {[%clk 0:02:34]}  Nbd7 {[%clk 0:02:56]} 10. Rd1 {[%clk 0:02:28]}  Qb6 {[%clk 0:02:55]} 11. Ne5 {[%clk 0:02:15]}  Rd8 {[%clk 0:02:48]} 12. Nxd7 {[%clk 0:02:01]}  Rxd7 {[%clk 0:02:48]} 13. a4 {[%clk 0:02:00]}  c4 {[%clk 0:02:28]} 14. Bb1 {[%clk 0:01:48]}  Bb4 {[%clk 0:02:28]} 15. f3 {[%clk 0:01:46]}  O-O {[%clk 0:02:26]} 16. axb5 {[%clk 0:01:44]}  axb5 {[%clk 0:02:25]} 17. Kh1 {[%clk 0:01:40]}  Rfd8 {[%clk 0:02:04]} 18. Ne4 {[%clk 0:01:29]}  Nd5 {[%clk 0:01:54]} 19. Bd2 {[%clk 0:01:17]}  Bxd2 {[%clk 0:01:54]} 20. Rxd2 {[%clk 0:01:10]}  e5 {[%clk 0:01:54]} 21. Bc2 {[%clk 0:00:57]}  Nb4 {[%clk 0:01:43]} 22. Nc5 {[%clk 0:00:46]}  Qxc5 {[%clk 0:01:28]} 23. Bxh7+ {[%clk 0:00:42]}  Kxh7 {[%clk 0:01:27]} 24. dxc5 {[%clk 0:00:43]}  Rxd2 {[%clk 0:01:26]} 25. Qe1 {[%clk 0:00:43]}  Nc2 {[%clk 0:01:25]} 26. Qh4+ {[%clk 0:00:42]}  Kg8 {[%clk 0:01:25]} 27. Rg1 {[%clk 0:00:28]}  Nxe3 {[%clk 0:01:24]} 28. h3 {[%clk 0:00:27]}  Nxg2 {[%clk 0:01:20]} 29. Qg4 {[%clk 0:00:18]}  g6 {[%clk 0:01:12]} 30. Rxg2 {[%clk 0:00:17]}  Rxg2 {[%clk 0:01:07]} 31. Kxg2 {[%clk 0:00:17]}  Rd3 {[%clk 0:01:04]} 32. Qg5 {[%clk 0:00:15]}  Bxf3+ {[%clk 0:01:00]} 33. Kf2 {[%clk 0:00:15]}  Bd5 {[%clk 0:00:53]} 34. Qf6 {[%clk 0:00:13]}  Be6 {[%clk 0:00:49]} 35. Qxe5 {[%clk 0:00:12]}  Rd2+ {[%clk 0:00:48]} 36. Ke3 {[%clk 0:00:12]}  Rd5 {[%clk 0:00:49]} 37. Qb8+ {[%clk 0:00:11]}  Kg7 {[%clk 0:00:49]} 38. c6 {[%clk 0:00:12]}  Rh5 {[%clk 0:00:42]} 39. c7 {[%clk 0:00:10]}  Rxh3+ {[%clk 0:00:42]} 40. Kd4 {[%clk 0:00:10]}  Rb3 {[%clk 0:00:41]} 41. c8=Q {[%clk 0:00:10]}  Bxc8 {[%clk 0:00:41]} 42. Qxc8 {[%clk 0:00:10]}  Rxb2 {[%clk 0:00:41]} 43. Kc3 {[%clk 0:00:09]}  Rb3+ {[%clk 0:00:41]} 44. Kc2 {[%clk 0:00:09]}  Rf3 {[%clk 0:00:36]} 45. Qg4 {[%clk 0:00:09]}  Rf5 {[%clk 0:00:36]} 46. Qd4+ {[%clk 0:00:08]}  Kh6 {[%clk 0:00:35]} 47. Qh4+ {[%clk 0:00:08]}  Kg7 {[%clk 0:00:35]} 48. Qd4+ {[%clk 0:00:09]}  f6 {[%clk 0:00:32]} 49. Kc3 {[%clk 0:00:08]}  g5 {[%clk 0:00:30]} 50. Qd7+ {[%clk 0:00:07]}  Kg6 {[%clk 0:00:30]} 51. Qe8+ {[%clk 0:00:07]}  Kh6 {[%clk 0:00:30]} 52. Qh8+ {[%clk 0:00:08]}  Kg6 {[%clk 0:00:29]} 53. Qe8+ {[%clk 0:00:08]}  Kg7 {[%clk 0:00:27]} 54. Qd7+ {[%clk 0:00:07]}  Kh6 {[%clk 0:00:23]} 55. Qxf5 {[%clk 0:00:07]}  Kh5 {[%clk 0:00:22]} 56. Qxf6 {[%clk 0:00:07]}  g4 {[%clk 0:00:21]} 57. Qf2 {[%clk 0:00:05]}  Kg5 {[%clk 0:00:21]} 58. Qg3 {[%clk 0:00:05]}  Kf5 {[%clk 0:00:21]} 59. Kb4 {[%clk 0:00:06]}  Ke4 {[%clk 0:00:19]} 60. Kxb5 {[%clk 0:00:06]}  c3 {[%clk 0:00:18]} 61. Qxc3 {[%clk 0:00:05]}  Kf4 {[%clk 0:00:19]} 62. Qf6+ {[%clk 0:00:06]}  Kg3 {[%clk 0:00:19]} 63. Kc4 {[%clk 0:00:05]}  Kh3 {[%clk 0:00:18]} 64. Qh6+ {[%clk 0:00:04]}  Kg2 {[%clk 0:00:18]} 65. Kd3 {[%clk 0:00:04]}  g3 {[%clk 0:00:19]} 66. Ke3 {[%clk 0:00:04]}  Kg1 {[%clk 0:00:18]} 67. Kf3 {[%clk 0:00:04]}  g2 {[%clk 0:00:18]} 68. Qg5 {[%clk 0:00:05]} 1-0


[Site "https://www.chess.com"]

[Event "Titled Tuesday Blitz April 11 Early 2023"]
[White "Fajdetic, Hrvoje"]
[Black "Liu, Casper"]
[WhiteFideId "14501945"]
[BlackFideId "1454153"]
[WhiteElo "2185"]
[BlackElo "2221"]
[Result "1-0"]
[Round "08"]
[TimeControl "180+2"]
[Date "2023.04.11"]
[WhiteClock "0:00:15"]
[BlackClock "0:00:15"]

1. d4 {[%clk 0:02:53]}  f5 {[%clk 0:02:56]} 2. Bg5 {[%clk 0:02:48]}  Nf6 {[%clk 0:02:56]} 3. Bxf6 {[%clk 0:02:39]}  exf6 {[%clk 0:02:55]} 4. e3 {[%clk 0:02:34]}  d5 {[%clk 0:02:55]} 5. c4 {[%clk 0:02:34]}  c6 {[%clk 0:02:54]} 6. Qb3 {[%clk 0:02:31]}  Bd6 {[%clk 0:02:42]} 7. cxd5 {[%clk 0:02:27]}  cxd5 {[%clk 0:02:43]} 8. Bb5+ {[%clk 0:02:27]}  Nc6 {[%clk 0:02:43]} 9. Nc3 {[%clk 0:02:25]}  Be6 {[%clk 0:02:43]} 10. Nge2 {[%clk 0:02:24]}  O-O {[%clk 0:02:43]} 11. h4 {[%clk 0:02:21]}  Kh8 {[%clk 0:02:44]} 12. g3 {[%clk 0:02:04]}  Nb4 {[%clk 0:02:37]} 13. a3 {[%clk 0:01:52]}  a6 {[%clk 0:02:37]} 14. axb4 {[%clk 0:01:47]}  axb5 {[%clk 0:02:38]} 15. O-O-O {[%clk 0:01:37]}  Qe7 {[%clk 0:02:29]} 16. Nf4 {[%clk 0:01:33]}  Bxb4 {[%clk 0:02:03]} 17. Nxe6 {[%clk 0:01:06]}  Rfc8 {[%clk 0:01:12]} 18. Nc5 {[%clk 0:00:54]}  Bxc3 {[%clk 0:01:10]} 19. bxc3 {[%clk 0:00:49]}  b6 {[%clk 0:01:08]} 20. Qxd5 {[%clk 0:00:33]}  bxc5 {[%clk 0:01:04]} 21. dxc5 {[%clk 0:00:32]}  Ra1+ {[%clk 0:00:46]} 22. Kb2 {[%clk 0:00:31]}  Ra7 {[%clk 0:00:26]} 23. Qd6 {[%clk 0:00:21]}  Qe8 {[%clk 0:00:10]} 24. Rd5 {[%clk 0:00:12]}  h6 {[%clk 0:00:09]} 25. Rhd1 {[%clk 0:00:08]}  Qe4 {[%clk 0:00:08]} 26. Qf4 {[%clk 0:00:03]}  Qe6 {[%clk 0:00:04]} 27. Rd8+ {[%clk 0:00:03]}  Rxd8 {[%clk 0:00:03]} 28. Rxd8+ {[%clk 0:00:04]}  Kh7 {[%clk 0:00:04]} 29. c4 {[%clk 0:00:04]}  bxc4 {[%clk 0:00:04]} 30. Kc3 {[%clk 0:00:04]}  Ra3+ {[%clk 0:00:03]} 31. Kb4 {[%clk 0:00:04]}  Rb3+ {[%clk 0:00:03]} 32. Ka5 {[%clk 0:00:04]}  c3 {[%clk 0:00:01]} 33. Rb8 {[%clk 0:00:01]}  Ra3+ {[%clk 0:00:01]} 34. Kb4 {[%clk 0:00:01]}  Rb3+ {[%clk 0:00:01]} 35. Ka5 {[%clk 0:00:01]}  Rxb8 {[%clk 0:00:02]} 36. Qxb8 {[%clk 0:00:01]}  c2 {[%clk 0:00:02]} 37. Qb2 {[%clk 0:00:01]}  Qc4 {[%clk 0:00:03]} 38. Qc1 {[%clk 0:00:02]}  Qxc5+ {[%clk 0:00:04]} 39. Ka4 {[%clk 0:00:02]}  Kg6 {[%clk 0:00:04]} 40. Kb3 {[%clk 0:00:03]}  Kh5 {[%clk 0:00:03]} 41. Qxc2 {[%clk 0:00:04]}  Qxc2+ {[%clk 0:00:03]} 42. Kxc2 {[%clk 0:00:05]}  Kg4 {[%clk 0:00:04]} 43. Kd2 {[%clk 0:00:05]}  Kf3 {[%clk 0:00:05]} 44. Ke1 {[%clk 0:00:05]}  h5 {[%clk 0:00:05]} 45. Kf1 {[%clk 0:00:06]}  g5 {[%clk 0:00:06]} 46. Kg1 {[%clk 0:00:07]}  gxh4 {[%clk 0:00:06]} 47. gxh4 {[%clk 0:00:08]}  Kg4 {[%clk 0:00:06]} 48. Kg2 {[%clk 0:00:08]}  Kxh4 {[%clk 0:00:07]} 49. f3 {[%clk 0:00:09]}  Kg5 {[%clk 0:00:07]} 50. Kg3 {[%clk 0:00:10]}  h4+ {[%clk 0:00:07]} 51. Kh3 {[%clk 0:00:10]}  f4 {[%clk 0:00:08]} 52. e4 {[%clk 0:00:10]}  Kh5 {[%clk 0:00:08]} 53. Kg2 {[%clk 0:00:10]}  Kg5 {[%clk 0:00:08]} 54. Kh3 {[%clk 0:00:11]}  Kh5 {[%clk 0:00:08]} 55. Kg2 {[%clk 0:00:11]}  Kh6 {[%clk 0:00:09]} 56. Kh3 {[%clk 0:00:12]}  Kg5 {[%clk 0:00:09]} 57. Kh2 {[%clk 0:00:11]}  f5 {[%clk 0:00:10]} 58. e5 {[%clk 0:00:10]}  Kg6 {[%clk 0:00:10]} 59. Kh3 {[%clk 0:00:10]}  Kf7 {[%clk 0:00:10]} 60. Kxh4 {[%clk 0:00:11]}  Ke6 {[%clk 0:00:11]} 61. Kg5 {[%clk 0:00:11]}  Kxe5 {[%clk 0:00:11]} 62. Kg6 {[%clk 0:00:11]}  Kd4 {[%clk 0:00:12]} 63. Kxf5 {[%clk 0:00:12]}  Ke3 {[%clk 0:00:12]} 64. Kg4 {[%clk 0:00:12]}  Kd4 {[%clk 0:00:12]} 65. Kxf4 {[%clk 0:00:13]}  Kd5 {[%clk 0:00:13]} 66. Kf5 {[%clk 0:00:13]}  Kd6 {[%clk 0:00:13]} 67. Kf6 {[%clk 0:00:14]}  Kd7 {[%clk 0:00:14]} 68. Kf7 {[%clk 0:00:14]}  Kd6 {[%clk 0:00:14]} 69. f4 {[%clk 0:00:15]}  Kd5 {[%clk 0:00:15]} 70. f5 {[%clk 0:00:15]} 1-0


[Site "https://www.chess.com"]

[Event "Titled Tuesday Blitz April 11 Early 2023"]
[White "Skaric, Djuro"]
[Black "Szyszylo, Rafal"]
[WhiteFideId "934569"]
[BlackFideId "1109626"]
[WhiteElo "2282"]
[BlackElo "1951"]
[Result "1-0"]
[Round "08"]
[TimeControl "180+2"]
[Date "2023.04.11"]
[WhiteClock "0:01:33"]
[BlackClock "0:00:02"]

1. g3 {[%clk 0:03:00]}  d6 {[%clk 0:02:59]} 2. Bg2 {[%clk 0:03:01]}  g6 {[%clk 0:02:59]} 3. d3 {[%clk 0:03:02]}  Nf6 {[%clk 0:02:59]} 4. Nf3 {[%clk 0:03:03]}  Bg7 {[%clk 0:02:59]} 5. O-O {[%clk 0:03:03]}  O-O {[%clk 0:02:59]} 6. Nc3 {[%clk 0:03:04]}  e5 {[%clk 0:02:53]} 7. e4 {[%clk 0:03:04]}  Bg4 {[%clk 0:02:44]} 8. h3 {[%clk 0:03:04]}  Bxf3 {[%clk 0:02:45]} 9. Bxf3 {[%clk 0:03:04]}  Nc6 {[%clk 0:02:42]} 10. Bg2 {[%clk 0:03:05]}  Qe7 {[%clk 0:02:29]} 11. f4 {[%clk 0:03:05]}  Nh5 {[%clk 0:02:28]} 12. Ne2 {[%clk 0:03:00]}  f5 {[%clk 0:02:14]} 13. Kh2 {[%clk 0:02:55]}  Rae8 {[%clk 0:02:03]} 14. Be3 {[%clk 0:02:46]}  exf4 {[%clk 0:01:09]} 15. gxf4 {[%clk 0:02:37]}  fxe4 {[%clk 0:01:04]} 16. dxe4 {[%clk 0:02:37]}  Nf6 {[%clk 0:00:52]} 17. Nc3 {[%clk 0:02:33]}  a6 {[%clk 0:00:49]} 18. Qd2 {[%clk 0:02:32]}  Kh8 {[%clk 0:00:43]} 19. Rae1 {[%clk 0:02:31]}  Qd7 {[%clk 0:00:29]} 20. Qf2 {[%clk 0:02:23]}  b5 {[%clk 0:00:25]} 21. a3 {[%clk 0:02:22]}  Na5 {[%clk 0:00:24]} 22. Bf3 {[%clk 0:02:19]}  Nc4 {[%clk 0:00:24]} 23. Bc1 {[%clk 0:02:18]}  c6 {[%clk 0:00:15]} 24. Qg3 {[%clk 0:02:16]}  c5 {[%clk 0:00:05]} 25. Rg1 {[%clk 0:01:50]}  b4 {[%clk 0:00:04]} 26. axb4 {[%clk 0:01:49]}  cxb4 {[%clk 0:00:05]} 27. Nd1 {[%clk 0:01:48]}  Ng8 {[%clk 0:00:03]} 28. Nf2 {[%clk 0:01:47]}  Nb6 {[%clk 0:00:02]} 29. Ng4 {[%clk 0:01:47]}  Nc4 {[%clk 0:00:02]} 30. b3 {[%clk 0:01:42]}  Na3 {[%clk 0:00:01]} 31. Rg2 {[%clk 0:01:41]}  a5 {[%clk 0:00:01]} 32. Reg1 {[%clk 0:01:40]}  Qe7 {[%clk 0:00:02]} 33. Ne3 {[%clk 0:01:37]}  Rc8 {[%clk 0:00:02]} 34. Nd5 {[%clk 0:01:37]}  Qf7 {[%clk 0:00:03]} 35. f5 {[%clk 0:01:36]}  gxf5 {[%clk 0:00:02]} 36. Qxg7+ {[%clk 0:01:34]}  Qxg7 {[%clk 0:00:02]} 37. Rxg7 {[%clk 0:01:34]}  fxe4 {[%clk 0:00:03]} 38. Bxe4 {[%clk 0:01:34]}  Nf6 {[%clk 0:00:02]} 39. Nxf6 {[%clk 0:01:33]} 1-0


[Site "https://www.chess.com"]

[Event "Titled Tuesday Blitz April 11 Early 2023"]
[White "Van Osch, Mees"]
[Black "Chabris, Christopher"]
[WhiteFideId "1035967"]
[BlackFideId "2005263"]
[WhiteElo "2324"]
[BlackElo "2274"]
[Result "0-1"]
[Round "08"]
[TimeControl "180+2"]
[Date "2023.04.11"]
[WhiteClock "0:02:01"]
[BlackClock "0:00:11"]

1. e4 {[%clk 0:02:56]}  c5 {[%clk 0:02:59]} 2. Nf3 {[%clk 0:02:56]}  Nc6 {[%clk 0:02:59]} 3. d4 {[%clk 0:02:56]}  cxd4 {[%clk 0:02:59]} 4. Nxd4 {[%clk 0:02:57]}  e5 {[%clk 0:02:59]} 5. Nb5 {[%clk 0:02:57]}  d6 {[%clk 0:02:59]} 6. N1c3 {[%clk 0:02:58]}  a6 {[%clk 0:03:00]} 7. Na3 {[%clk 0:02:58]}  Be7 {[%clk 0:03:00]} 8. Nc4 {[%clk 0:02:54]}  b5 {[%clk 0:02:59]} 9. Ne3 {[%clk 0:02:54]}  Nf6 {[%clk 0:03:00]} 10. g3 {[%clk 0:02:51]}  h5 {[%clk 0:02:59]} 11. Bg2 {[%clk 0:02:51]}  h4 {[%clk 0:02:59]} 12. Ned5 {[%clk 0:02:46]}  b4 {[%clk 0:02:20]} 13. Nxf6+ {[%clk 0:02:43]}  Bxf6 {[%clk 0:02:20]} 14. Nd5 {[%clk 0:02:44]}  Rb8 {[%clk 0:02:06]} 15. Be3 {[%clk 0:02:41]}  O-O {[%clk 0:01:49]} 16. O-O {[%clk 0:02:39]}  g6 {[%clk 0:01:33]} 17. f4 {[%clk 0:02:28]}  exf4 {[%clk 0:01:29]} 18. gxf4 {[%clk 0:02:25]}  Bxb2 {[%clk 0:01:24]} 19. Rb1 {[%clk 0:02:25]}  Bg7 {[%clk 0:01:16]} 20. f5 {[%clk 0:02:25]}  Be5 {[%clk 0:00:51]} 21. Qg4 {[%clk 0:02:13]}  Nd4 {[%clk 0:00:42]} 22. Bg5 {[%clk 0:02:07]}  f6 {[%clk 0:00:17]} 23. Bxh4 {[%clk 0:02:00]}  g5 {[%clk 0:00:13]} 24. Bxg5 {[%clk 0:02:00]}  fxg5 {[%clk 0:00:12]} 25. Qxg5+ {[%clk 0:02:01]}  Qxg5 {[%clk 0:00:11]} 0-1


[Site "https://www.chess.com"]

[Event "Titled Tuesday Blitz April 11 Early 2023"]
[White "Alice, Mateus Felizardo Viageiro"]
[Black "lluiss"]
[WhiteFideId "14800047"]
[WhiteElo "2189"]
[BlackElo "2261"]
[Result "0-1"]
[Round "08"]
[TimeControl "180+2"]
[Date "2023.04.11"]
[WhiteClock "0:01:29"]
[BlackClock "0:00:35"]

1. e4 {[%clk 0:03:00]}  c5 {[%clk 0:02:58]} 2. Nf3 {[%clk 0:03:00]}  d6 {[%clk 0:02:58]} 3. d4 {[%clk 0:03:00]}  cxd4 {[%clk 0:02:59]} 4. Nxd4 {[%clk 0:03:00]}  Nf6 {[%clk 0:02:59]} 5. Nc3 {[%clk 0:03:01]}  g6 {[%clk 0:02:59]} 6. Be2 {[%clk 0:02:59]}  Bg7 {[%clk 0:02:59]} 7. g4 {[%clk 0:02:59]}  O-O {[%clk 0:02:58]} 8. g5 {[%clk 0:03:00]}  Nfd7 {[%clk 0:02:58]} 9. Be3 {[%clk 0:03:00]}  Nc6 {[%clk 0:02:58]} 10. Qd2 {[%clk 0:02:59]}  Nxd4 {[%clk 0:02:53]} 11. Bxd4 {[%clk 0:02:59]}  Bxd4 {[%clk 0:02:53]} 12. Qxd4 {[%clk 0:02:59]}  Qb6 {[%clk 0:02:53]} 13. O-O-O {[%clk 0:02:56]}  Qxd4 {[%clk 0:02:45]} 14. Rxd4 {[%clk 0:02:57]}  Nb6 {[%clk 0:02:25]} 15. f4 {[%clk 0:02:56]}  Bd7 {[%clk 0:02:17]} 16. h4 {[%clk 0:02:55]}  Bc6 {[%clk 0:02:16]} 17. h5 {[%clk 0:02:53]}  e5 {[%clk 0:02:10]} 18. fxe5 {[%clk 0:02:52]}  dxe5 {[%clk 0:02:10]} 19. Rd6 {[%clk 0:02:48]}  Rad8 {[%clk 0:02:01]} 20. Rxd8 {[%clk 0:02:44]}  Rxd8 {[%clk 0:02:01]} 21. hxg6 {[%clk 0:02:44]}  hxg6 {[%clk 0:02:00]} 22. b3 {[%clk 0:02:40]}  Kg7 {[%clk 0:01:59]} 23. a4 {[%clk 0:02:38]}  a5 {[%clk 0:01:56]} 24. Bb5 {[%clk 0:02:25]}  Bxb5 {[%clk 0:01:56]} 25. Nxb5 {[%clk 0:02:25]}  f5 {[%clk 0:01:45]} 26. gxf6+ {[%clk 0:02:24]}  Kxf6 {[%clk 0:01:46]} 27. Rh7 {[%clk 0:02:22]}  Rd7 {[%clk 0:01:41]} 28. Rh8 {[%clk 0:02:15]}  Rg7 {[%clk 0:01:30]} 29. Rf8+ {[%clk 0:02:12]}  Ke7 {[%clk 0:01:27]} 30. Rf3 {[%clk 0:02:11]}  g5 {[%clk 0:01:26]} 31. Rg3 {[%clk 0:02:11]}  g4 {[%clk 0:01:26]} 32. Kd2 {[%clk 0:02:12]}  Kf6 {[%clk 0:01:26]} 33. Ke3 {[%clk 0:02:12]}  Kg5 {[%clk 0:01:26]} 34. Nd6 {[%clk 0:02:10]}  Rh7 {[%clk 0:01:06]} 35. Nf5 {[%clk 0:01:57]}  Nd7 {[%clk 0:00:59]} 36. Kd3 {[%clk 0:01:55]}  Nc5+ {[%clk 0:00:57]} 37. Ke3 {[%clk 0:01:54]}  Ne6 {[%clk 0:00:49]} 38. c3 {[%clk 0:01:49]}  Rh3 {[%clk 0:00:46]} 39. b4 {[%clk 0:01:47]}  axb4 {[%clk 0:00:41]} 40. cxb4 {[%clk 0:01:47]}  Nd4 {[%clk 0:00:40]} 41. Rxh3 {[%clk 0:01:36]}  Nxf5+ {[%clk 0:00:37]} 42. exf5 {[%clk 0:01:35]}  gxh3 {[%clk 0:00:37]} 43. Kf3 {[%clk 0:01:32]}  e4+ {[%clk 0:00:37]} 44. Kg3 {[%clk 0:01:32]}  e3 {[%clk 0:00:36]} 45. a5 {[%clk 0:01:28]}  e2 {[%clk 0:00:36]} 46. Kf2 {[%clk 0:01:28]}  h2 {[%clk 0:00:35]} 47. Kxe2 {[%clk 0:01:29]}  h1=Q {[%clk 0:00:35]} 0-1


[Site "https://www.chess.com"]

[Event "Titled Tuesday Blitz April 11 Early 2023"]
[White "Balint, Vilmos"]
[Black "Warchol, Kamil"]
[WhiteFideId "718050"]
[BlackFideId "21858241"]
[WhiteElo "2034"]
[BlackElo "2017"]
[Result "1-0"]
[Round "08"]
[TimeControl "180+2"]
[Date "2023.04.11"]
[WhiteClock "0:02:07"]
[BlackClock "0:00:03"]

1. e4 {[%clk 0:03:00]}  c5 {[%clk 0:02:15]} 2. Nf3 {[%clk 0:02:58]}  e6 {[%clk 0:02:14]} 3. d4 {[%clk 0:02:58]}  cxd4 {[%clk 0:02:15]} 4. Nxd4 {[%clk 0:02:59]}  Nc6 {[%clk 0:02:14]} 5. Nxc6 {[%clk 0:02:57]}  bxc6 {[%clk 0:02:13]} 6. Bd3 {[%clk 0:02:58]}  d5 {[%clk 0:02:13]} 7. exd5 {[%clk 0:02:59]}  cxd5 {[%clk 0:02:13]} 8. O-O {[%clk 0:02:59]}  Nf6 {[%clk 0:02:14]} 9. c4 {[%clk 0:02:59]}  Be7 {[%clk 0:02:07]} 10. Nc3 {[%clk 0:02:57]}  O-O {[%clk 0:02:06]} 11. cxd5 {[%clk 0:02:57]}  Nxd5 {[%clk 0:02:06]} 12. Nxd5 {[%clk 0:02:57]}  Qxd5 {[%clk 0:02:06]} 13. Be3 {[%clk 0:02:56]}  Bb7 {[%clk 0:02:05]} 14. f3 {[%clk 0:02:56]}  Bc5 {[%clk 0:02:02]} 15. Qe2 {[%clk 0:02:50]}  Rfd8 {[%clk 0:01:59]} 16. Rfd1 {[%clk 0:02:49]}  Qe5 {[%clk 0:01:53]} 17. Bxc5 {[%clk 0:02:38]}  Qxc5+ {[%clk 0:01:51]} 18. Qf2 {[%clk 0:02:35]}  Qxf2+ {[%clk 0:01:46]} 19. Kxf2 {[%clk 0:02:35]}  Bd5 {[%clk 0:01:47]} 20. b3 {[%clk 0:02:33]}  a5 {[%clk 0:01:39]} 21. Rac1 {[%clk 0:02:33]}  a4 {[%clk 0:01:38]} 22. Bc4 {[%clk 0:02:31]}  axb3 {[%clk 0:01:02]} 23. axb3 {[%clk 0:02:30]}  Rdb8 {[%clk 0:00:59]} 24. Bxd5 {[%clk 0:02:27]}  exd5 {[%clk 0:00:58]} 25. Rxd5 {[%clk 0:02:23]}  Rxb3 {[%clk 0:00:57]} 26. Rc2 {[%clk 0:02:22]}  g6 {[%clk 0:00:53]} 27. h4 {[%clk 0:02:22]}  h5 {[%clk 0:00:51]} 28. Rd7 {[%clk 0:02:19]}  Rb4 {[%clk 0:00:41]} 29. Kg3 {[%clk 0:02:19]}  Rf8 {[%clk 0:00:37]} 30. Rcc7 {[%clk 0:02:18]}  Kg7 {[%clk 0:00:37]} 31. Ra7 {[%clk 0:02:18]}  Kf6 {[%clk 0:00:37]} 32. Kh3 {[%clk 0:02:18]}  Rb3 {[%clk 0:00:36]} 33. Rdc7 {[%clk 0:02:15]}  Kg7 {[%clk 0:00:36]} 34. Rc6 {[%clk 0:02:15]}  Re8 {[%clk 0:00:36]} 35. Rcc7 {[%clk 0:02:15]}  Rf8 {[%clk 0:00:36]} 36. Kh2 {[%clk 0:02:14]}  Rb4 {[%clk 0:00:35]} 37. g3 {[%clk 0:02:14]}  Rb2+ {[%clk 0:00:35]} 38. Kh3 {[%clk 0:02:14]}  Rb3 {[%clk 0:00:35]} 39. f4 {[%clk 0:02:15]}  Rd3 {[%clk 0:00:31]} 40. f5 {[%clk 0:02:13]}  gxf5 {[%clk 0:00:26]} 41. Ra5 {[%clk 0:02:12]}  Kg6 {[%clk 0:00:24]} 42. Rc6+ {[%clk 0:02:10]}  f6 {[%clk 0:00:24]} 43. Rc7 {[%clk 0:02:10]}  f4 {[%clk 0:00:22]} 44. Raa7 {[%clk 0:02:10]}  Rxg3+ {[%clk 0:00:21]} 45. Kh2 {[%clk 0:02:10]}  Kf5 {[%clk 0:00:21]} 46. Rc5+ {[%clk 0:02:10]}  Kg4 {[%clk 0:00:20]} 47. Rh7 {[%clk 0:02:03]}  Kxh4 {[%clk 0:00:19]} 48. Rhxh5+ {[%clk 0:01:59]}  Kg4 {[%clk 0:00:19]} 49. Rh7 {[%clk 0:01:58]}  Ra8 {[%clk 0:00:19]} 50. Rg7+ {[%clk 0:01:58]}  Kf3 {[%clk 0:00:18]} 51. Rc3+ {[%clk 0:01:58]}  Kf2 {[%clk 0:00:11]} 52. Rc2+ {[%clk 0:01:58]}  Kf3 {[%clk 0:00:08]} 53. Rc3+ {[%clk 0:01:58]}  Ke4 {[%clk 0:00:05]} 54. Rgxg3 {[%clk 0:01:58]}  fxg3+ {[%clk 0:00:05]} 55. Kxg3 {[%clk 0:01:59]}  f5 {[%clk 0:00:06]} 56. Rc4+ {[%clk 0:01:59]}  Kd5 {[%clk 0:00:05]} 57. Rc7 {[%clk 0:01:59]}  Ke5 {[%clk 0:00:04]} 58. Rc5+ {[%clk 0:01:59]}  Kf6 {[%clk 0:00:03]} 59. Rb5 {[%clk 0:01:59]}  Kg5 {[%clk 0:00:03]} 60. Rb3 {[%clk 0:02:00]}  Ra4 {[%clk 0:00:03]} 61. Kf3 {[%clk 0:02:00]}  Rh4 {[%clk 0:00:03]} 62. Rb8 {[%clk 0:02:00]}  Rh3+ {[%clk 0:00:03]} 63. Kg2 {[%clk 0:02:00]}  Ra3 {[%clk 0:00:03]} 64. Rg8+ {[%clk 0:02:01]}  Kf4 {[%clk 0:00:04]} 65. Rb8 {[%clk 0:02:02]}  Ra2+ {[%clk 0:00:04]} 66. Kf1 {[%clk 0:02:03]}  Kf3 {[%clk 0:00:04]} 67. Rb3+ {[%clk 0:02:03]}  Kg4 {[%clk 0:00:04]} 68. Rb4+ {[%clk 0:02:04]}  f4 {[%clk 0:00:04]} 69. Rb8 {[%clk 0:02:05]}  Kf3 {[%clk 0:00:04]} 70. Rb3+ {[%clk 0:02:05]}  Kg4 {[%clk 0:00:05]} 71. Rb8 {[%clk 0:02:06]}  f3 {[%clk 0:00:05]} 72. Rg8+ {[%clk 0:02:06]}  Kf4 {[%clk 0:00:05]} 73. Rf8+ {[%clk 0:02:06]}  Kg4 {[%clk 0:00:06]} 74. Ra8 {[%clk 0:02:07]}  Kf4 {[%clk 0:00:06]} 75. Rxa2 {[%clk 0:02:08]}  Ke3 {[%clk 0:00:03]} 76. Ra3+ {[%clk 0:02:07]} 1-0


[Site "https://www.chess.com"]